bitfinex/quotes_ETHUSD_20250110
["timestamp","ask_amount","ask_price","bid_price","bid_amount"]
[1736517075067,8.77,3236.9,3235.8,0.1677341]
[1736517075224,8.77,3236.8,3235.8,3.1677341]
[1736517075425,8.77,3236.8,3236.7,3.08956]
[1736517075669,8.77,3237.1,3236.2,3.0]
[1736517075819,8.77,3237.1,3236.7,0.04298577]
[1736517075820,0.03861771,3237.0,3236.7,0.04298577]
[1736517076023,11.85938,3236.9,3235.8,0.1677341]
[1736517076261,0.05,3236.7,3235.8,0.1677341]
[1736517076459,8.77,3236.6,3235.9,0.04345327]
[1736517076878,0.03862634,3236.5,3235.8,0.1677341]
[1736517077083,8.77,3236.6,3236.0,0.04339482]
[1736517077437,8.77,3236.6,3235.9,0.04345327]
[1736517077599,0.03862549,3236.5,3236.1,0.04333638]
[1736517077797,8.77,3236.6,3236.2,3.09001]
[1736517078016,8.77,3236.6,3236.1,3.09013]
[1736517078302,8.77,3236.6,3235.8,3.2581441]
[1736517078303,8.82,3237.1,3236.5,3.08975]
[1736517078501,0.465,3237.5,3237.4,6.08889]
[1736517078713,4.327,3238.0,3237.5,3.0]
[1736517078846,4.327,3238.0,3237.9,3.08842]
[1736517079041,4.327,3238.0,3237.4,0.04257689]
[1736517079401,4.327,3238.0,3237.9,3.08842]
[1736517079769,4.327,3238.0,3237.9,3.13070494]
[1736517080474,4.327,3238.0,3237.9,6.13070494]
[1736517080803,0.05,3239.3,3238.0,0.015]
[1736517081094,9.235,3239.2,3238.4,3.08793]
[1736517081319,9.235,3239.2,3238.1,0.04247521]
[1736517081320,10.472208,3239.2,3238.1,0.04247521]
[1736517081483,9.235,3239.2,3238.5,3.12996483]
[1736517081662,0.465,3239.1,3238.2,0.02310246]
[1736517082028,0.038597,3239.0,3238.2,3.08807]
[1736517082165,0.465,3239.1,3238.3,0.04277199]
[1736517082476,0.03860189,3239.0,3238.0,0.0075]
[1736517082674,0.03860189,3239.0,3237.9,3.0]
[1736517082859,0.465,3239.1,3238.4,3.08793]
[1736517083501,0.465,3239.1,3238.5,0.04249322]
[1736517083702,9.235,3239.1,3238.5,0.04249322]
[1736517084018,0.465,3239.0,3238.8,3.08753]
[1736517084220,0.465,3239.0,3238.6,3.13013929]
[1736517084423,0.03859588,3238.9,3238.4,3.08792]
[1736517084581,8.77,3238.8,3237.4,7.12850568]
[1736517084780,0.03860079,3238.7,3237.7,3.08857]
[1736517085004,0.05,3238.6,3237.7,3.08857]
[1736517085229,0.55,3238.4,3237.1,1.5737]
[1736517085507,8.77,3238.2,3236.6,4.62948]
[1736517085664,8.77,3238.0,3236.9,3.08928]
[1736517085865,8.77,3237.7,3236.1,1.5399]
[1736517086168,0.50361739,3237.6,3236.2,3.09004]
[1736517086361,0.465,3237.6,3237.2,3.08906]
[1736517086889,0.465,3237.6,3236.6,3.0075]
[1736517086890,9.235,3237.6,3237.4,3.08889]
[1736517087069,8.77,3237.6,3237.1,3.0]
[1736517087425,0.465,3238.4,3238.2,3.08813]
[1736517087636,4.6729721,3239.8,3237.8,3.08846]
[1736517087637,0.465,3238.6,3238.5,3.08784]
[1736517087923,8.77,3238.8,3237.8,3.0075]
[1736517087924,8.77,3238.8,3238.7,3.08765]
[1736517088227,8.77,3238.8,3238.1,1.5399]
[1736517088403,8.77,3238.8,3237.7,1.5969]
[1736517088564,8.77,3238.8,3237.8,0.17544]
[1736517088760,0.50359771,3238.7,3238.0,3.08831]
[1736517088965,0.465,3238.7,3237.8,3.10412155]
[1736517089227,0.465,3238.7,3237.8,0.01561155]
[1736517089524,0.03859769,3238.6,3238.2,3.08805]
[1736517089695,8.77,3238.8,3238.2,3.08805]
[1736517089905,8.77,3238.8,3238.3,0.04241384]
[1736517089906,0.05,3238.6,3238.3,0.04241384]
[1736517090102,8.80860592,3238.5,3238.3,0.04241384]
[1736517090303,3.08812,3238.3,3237.3,3.08892]
[1736517090508,3.08812,3238.3,3237.0,3.08925]
[1736517090509,0.55,3238.1,3237.0,3.08925]
[1736517090678,0.55,3237.9,3237.4,0.04293929]
[1736517090875,8.77,3237.7,3236.3,3.08994]
[1736517091080,0.05,3237.5,3236.4,0.01564634]
[1736517091334,8.77,3237.4,3236.5,0.0075]
[1736517091636,8.77,3237.4,3236.7,3.08948]
[1736517091637,0.50361428,3237.3,3236.7,3.08948]
[1736517091998,0.50361428,3237.3,3236.8,0.04376305]
[1736517092335,8.77,3237.2,3236.8,0.04376305]
[1736517092539,0.50361428,3237.3,3235.8,0.1677341]
[1736517092540,8.77,3237.0,3235.8,0.1677341]
[1736517092763,3.17802811,3236.9,3235.9,3.09029]
[1736517092973,8.77,3236.8,3235.8,0.1677341]
[1736517093105,0.55,3236.6,3236.0,0.04318731]
[1736517093460,0.55,3236.6,3236.1,0.04312887]
[1736517093620,3.69033,3235.9,3235.8,0.16086297]
[1736517093952,1.065,3235.9,3235.8,0.16086297]
[1736517094173,0.515,3235.9,3235.8,0.16086297]
[1736517094639,0.515,3235.9,3235.8,0.20272956]
[1736517094826,0.515,3235.9,3235.8,3.29314956]
[1736517094827,0.465,3235.9,3235.8,3.29314956]
[1736517095038,0.465,3235.9,3235.8,0.20272956]
[1736517095618,0.465,3235.9,3235.8,3.29314956]
[1736517095941,0.465,3235.9,3235.8,0.20272956]
[1736517096516,0.465,3235.9,3235.8,0.21022956]
[1736517096770,0.465,3236.0,3235.9,3.09033]
[1736517097116,0.465,3236.0,3235.9,0.04180814]
[1736517097870,0.465,3236.0,3235.9,3.13213814]
[1736517098655,0.465,3236.0,3235.9,6.13963814]
[1736517098854,0.465,3236.0,3235.9,6.14713814]
[1736517099042,0.466,3236.8,3236.7,3.08956]
[1736517099246,13.1,3237.3,3237.2,3.08908]
[1736517099557,13.566,3237.3,3237.2,3.08908]
[1736517099715,13.566,3237.3,3236.7,1.68214063]
[1736517100089,0.03861452,3237.2,3236.6,3.0]
[1736517100290,1.39907597,3237.2,3236.3,3.08992]
[1736517100589,0.05,3237.0,3236.0,3.0075]
[1736517100896,8.82,3237.0,3236.4,3.0]
[1736517101056,8.77,3237.0,3236.4,0.01564988]
[1736517101277,8.77,3237.0,3236.9,3.08937]
[1736517101565,4.33,3237.3,3236.8,0.015]
[1736517101802,4.33,3237.3,3237.2,3.08908]
[1736517102470,4.33,3237.3,3237.2,0.04148804]
[1736517102670,4.33,3237.3,3236.6,1.6034]
[1736517102859,4.33,3237.3,3237.2,0.04010031]
[1736517103060,4.33,3237.3,3236.7,3.0]
[1736517103259,0.03861681,3237.2,3236.2,1.5945]
[1736517103556,4.33,3237.3,3236.7,3.0075]
[1736517103797,4.33,3237.3,3236.5,0.0075]
[1736517103798,4.33,3237.3,3236.6,3.015]
[1736517103982,4.33,3237.3,3237.2,3.08908]
[1736517104587,4.33,3237.3,3236.7,3.0895]
[1736517104788,0.08861463,3237.2,3236.4,3.08981]
[1736517105014,8.77,3237.1,3236.1,3.09008]
[1736517105211,0.03862454,3237.0,3235.5,1.577]
[1736517105419,3.08989,3236.4,3236.2,0.04068028]
[1736517105621,8.8086321,3236.3,3234.7,4.45779883]
[1736517105912,0.515,3236.2,3234.6,4.66847]
[1736517106126,8.77,3236.0,3234.6,4.66847]
[1736517106324,3.6789695,3235.9,3234.7,3.09143]
[1736517106617,0.05,3235.9,3234.8,0.01567597]
[1736517106822,0.05,3235.9,3234.9,3.09123]
[1736517107118,0.05,3235.9,3235.0,0.015675]
[1736517107411,0.05,3235.9,3235.6,3.0906]
[1736517107665,0.465,3236.2,3235.4,3.09076]
[1736517107816,0.05,3236.7,3235.8,0.20177705]
[1736517108121,9.234,3237.0,3236.8,3.08938]
[1736517108274,0.464,3237.0,3236.9,3.09687]
[1736517108476,0.464,3237.0,3236.9,3.12964128]
[1736517109013,8.77,3237.7,3236.9,3.04027128]
[1736517109210,0.464,3237.7,3237.2,3.08904]
[1736517109373,0.464,3237.7,3236.9,0.04027128]
[1736517109574,0.464,3237.7,3237.2,3.089]
[1736517109824,9.234,3237.7,3237.3,0.04003764]
[1736517110229,10.1624,3237.7,3235.9,4.03966568]
[1736517110435,8.80861231,3237.6,3235.8,3.25122297]
[1736517110610,8.77,3237.5,3237.4,0.03997924]
[1736517110771,0.464,3237.5,3236.7,0.01563633]
[1736517110971,0.464,3237.5,3237.2,0.0075]
[1736517111215,8.77,3237.9,3237.3,0.04001206]
[1736517111423,8.77,3237.9,3237.7,3.08859]
[1736517111810,8.77,3237.9,3237.6,3.08866]
[1736517112013,8.77,3237.9,3237.8,0.03966041]
[1736517112214,8.77,3237.9,3237.7,0.0397188]
[1736517112420,0.03860764,3237.8,3237.3,3.08895]
[1736517112711,0.03860764,3237.8,3236.9,4.6501]
[1736517112712,8.77,3237.8,3237.2,0.0075]
[1736517112897,8.77,3237.9,3237.6,3.08862]
[1736517113100,8.77,3238.0,3237.7,0.0075]
[1736517113433,4.331,3238.4,3238.3,3.08804]
[1736517113728,0.464,3238.7,3237.9,1.5946]
[1736517114111,0.464,3238.7,3237.0,1.5684]
[1736517114112,0.03859775,3238.6,3237.0,1.5684]
[1736517114444,11.89634775,3238.6,3237.5,3.08878]
[1736517114743,3.08815,3238.2,3236.5,1.6291]
[1736517114943,8.80861178,3238.1,3237.2,3.08904]
[1736517115245,0.05,3238.4,3237.2,3.08904]
[1736517115246,8.77,3238.2,3237.2,3.08905]
[1736517115443,8.77,3237.9,3236.9,3.0893]
[1736517115739,0.03861416,3237.8,3236.9,3.0893]
[1736517115943,8.77,3237.9,3237.1,3.08915]
[1736517116251,8.77,3238.3,3237.3,3.0889]
[1736517116431,8.77,3238.1,3236.6,3.08959]
[1736517116632,8.77,3238.1,3236.7,0.01563823]
[1736517116820,0.03861412,3238.0,3237.0,3.08919]
[1736517117141,8.77,3238.1,3237.1,0.01563489]
[1736517117346,8.77,3237.9,3237.3,3.08898]
[1736517117529,8.77,3237.9,3237.5,3.08879]
[1736517117848,0.464,3237.8,3237.7,3.08855]
[1736517119247,0.464,3237.8,3237.5,0.01562099]
[1736517119248,9.234,3237.8,3236.3,3.08994]
[1736517119448,8.80860936,3237.7,3236.9,3.08929]
[1736517119747,0.05,3237.6,3236.6,3.08963]
[1736517119945,9.32,3237.5,3237.0,0.03660336]
[1736517120188,0.55,3237.2,3235.8,0.16086297]
[1736517120301,9.32,3236.8,3235.8,0.16086297]
[1736517120506,9.32,3236.8,3235.9,0.0360776]
[1736517120507,3.08994,3236.4,3235.9,0.0360776]
[1736517120706,9.37,3236.2,3235.8,0.16086297]
[1736517120902,0.03863705,3236.1,3235.8,0.16086297]
[1736517121212,8.77,3236.0,3235.8,0.16086297]
[1736517121545,11.89896609,3235.9,3235.8,0.16086297]
[1736517121856,13.65022661,3235.9,3235.8,0.16086297]
[1736517122608,8.82,3235.9,3235.8,0.16086297]
[1736517123107,8.82,3235.9,3235.8,0.19475958]
[1736517123307,12.46033,3235.9,3235.8,0.16086297]
[1736517123950,8.82,3235.9,3235.8,0.16086297]
[1736517124813,0.05,3236.4,3235.8,3.25128297]
[1736517125033,0.464,3236.3,3235.8,0.19475958]
[1736517125232,0.464,3236.2,3235.8,0.19475958]
[1736517125517,0.464,3236.2,3235.8,0.16086297]
[1736517125832,0.464,3236.2,3235.8,0.17653124]
[1736517126162,0.464,3236.2,3236.1,3.09013]
[1736517126368,0.464,3236.2,3235.9,0.03383816]
[1736517126616,0.464,3236.2,3236.1,0.03372126]
[1736517126794,0.464,3236.2,3236.1,3.09013]
[1736517127155,0.464,3236.2,3236.1,3.12385126]
[1736517127490,0.464,3236.2,3236.1,6.13885126]
[1736517127651,0.464,3236.6,3236.2,3.015]
[1736517127856,0.464,3236.6,3236.2,3.09002]
[1736517128053,0.464,3236.6,3236.3,0.03436967]
[1736517128266,0.464,3236.6,3236.1,3.15625]
[1736517128478,0.464,3236.6,3236.4,0.03431124]
[1736517128647,0.464,3236.6,3236.5,3.08975]
[1736517128893,0.464,3236.6,3236.5,6.12389646]
[1736517129272,0.464,3236.6,3236.5,0.03414646]
[1736517129457,0.464,3236.6,3236.1,3.09012]
[1736517129652,0.464,3236.6,3236.5,0.03414646]
[1736517129954,0.514,3236.6,3235.8,0.16086297]
[1736517130242,8.77,3236.4,3235.8,0.16086297]
[1736517130368,0.514,3236.6,3235.8,0.16086297]
[1736517130369,0.55,3236.2,3235.8,0.16086297]
[1736517130692,12.41033,3235.9,3235.8,0.16086297]
[1736517131496,3.09089,3235.4,3234.3,3.09182]
[1736517131802,3.09089,3235.4,3233.2,3.09289]
[1736517131803,0.05,3234.8,3232.6,1.6243]
[1736517132117,0.55,3234.5,3233.5,3.0926]
[1736517132255,8.8086567,3234.4,3233.5,3.0926]
[1736517132454,8.8086567,3234.4,3233.3,3.09277]
[1736517132455,0.05,3234.2,3233.3,3.09277]
[1736517132713,0.05,3234.2,3232.7,3.09338]
[1736517132714,0.05,3234.6,3233.5,1.551]
[1736517132899,0.464,3234.5,3234.2,3.09188]
[1736517133193,0.464,3234.5,3234.4,3.09176]
[1736517133359,0.464,3234.5,3234.2,3.09192]
[1736517133693,0.464,3234.5,3234.4,3.09176]
[1736517133894,0.464,3234.5,3234.4,6.09176]
[1736517134312,0.464,3234.5,3233.8,3.0923]
[1736517134471,0.464,3234.5,3233.9,0.01571271]
[1736517134668,0.464,3234.5,3233.9,3.10788457]
[1736517134872,0.03864656,3234.4,3234.0,0.03492192]
[1736517135067,0.03864656,3234.4,3233.7,3.09242]
[1736517135322,1.014,3234.5,3234.1,0.0348634]
[1736517135630,8.77,3234.0,3232.6,1.5231]
[1736517135768,8.77,3234.0,3233.0,3.0]
[1736517136086,3.09238,3233.8,3232.8,3.09321]
[1736517136287,8.82,3233.6,3232.5,0.1677341]
[1736517136466,0.0386657,3233.5,3233.0,3.09308]
[1736517136667,8.82,3233.6,3233.1,3.09291]
[1736517136993,0.03866186,3233.5,3232.5,0.1677341]
[1736517137335,0.462,3233.4,3232.5,0.1677341]
[1736517137475,8.80866569,3233.3,3232.5,0.1677341]
[1736517137674,0.03866719,3233.2,3232.5,0.1677341]
[1736517137874,0.462,3233.4,3233.3,3.09281]
[1736517138097,6.34086,3235.4,3233.2,3.01572706]
[1736517138098,0.462,3234.3,3233.2,3.01572706]
[1736517138389,0.462,3234.3,3233.3,3.09281]
[1736517138590,0.462,3234.3,3234.1,3.09204]
[1736517138965,0.462,3234.2,3234.1,3.09204]
[1736517139538,0.462,3234.2,3233.9,3.09222]
[1736517139811,0.462,3234.2,3233.4,3.09271]
[1736517140006,0.03865455,3234.1,3233.1,3.093]
[1736517140219,3.09215,3234.0,3233.0,3.09303]
[1736517140527,8.80866291,3233.9,3232.5,0.1677341]
[1736517140826,0.512,3234.2,3232.5,0.1677341]
[1736517140827,9.65086629,3233.8,3232.5,0.1677341]
[1736517141030,0.03866168,3233.7,3233.0,3.09301]
[1736517141234,0.462,3233.7,3233.1,0.01573184]
[1736517141389,0.462,3233.7,3233.6,3.09252]
[1736517142694,0.05,3234.6,3233.3,4.59724]
[1736517142695,0.03865341,3234.0,3233.7,3.09242]
[1736517142894,0.462,3233.9,3233.0,3.09309]
[1736517143189,0.462,3233.9,3233.2,3.09288]
[1736517143403,0.462,3233.9,3233.3,3.0928]
[1736517144032,0.61527597,3235.3,3233.5,3.09262]
[1736517144202,0.05,3235.2,3234.2,4.6555]
[1736517144415,0.05,3235.2,3234.7,3.0914]
[1736517144753,0.462,3235.2,3235.1,3.09109]
[1736517145035,0.512,3236.2,3236.1,3.09013]
[1736517145189,0.05,3236.2,3235.3,1.5551]
[1736517145393,0.462,3236.3,3235.4,0.01566971]
[1736517145639,0.462,3236.3,3235.6,3.09056]
[1736517145926,0.462,3236.3,3235.9,3.0903]
[1736517146138,8.77,3236.7,3235.5,0.0075]
[1736517146302,0.462,3236.6,3236.4,3.08983]
[1736517146492,0.462,3236.6,3236.5,3.08975]
[1736517146928,4.384,3237.4,3236.5,3.08975]
[1736517146929,4.796,3237.4,3237.3,3.08899]
[1736517147132,4.334,3237.4,3237.3,3.08899]
[1736517147535,4.334,3237.4,3236.9,3.0]
[1736517147704,4.334,3237.4,3236.9,3.10493572]
[1736517147903,4.334,3237.4,3236.2,1.593]
[1736517147904,0.03861214,3237.3,3236.2,1.593]
[1736517148104,0.03861214,3237.3,3236.2,4.68299]
[1736517148308,3.13909,3237.2,3235.3,4.6839]
[1736517148536,8.80862337,3237.1,3236.3,3.08992]
[1736517148843,0.05,3237.2,3235.7,0.03065543]
[1736517149045,4.334,3237.4,3235.7,0.03065543]
[1736517149227,0.05,3238.4,3235.7,0.03065543]
[1736517149228,9.232,3238.2,3236.7,3.08956]
[1736517149410,8.77,3238.1,3236.8,3.04986405]
[1736517149733,8.77,3238.0,3236.8,3.04986405]
[1736517149954,0.05,3238.4,3237.0,4.5147]
[1736517150111,0.462,3238.1,3238.0,3.08832]
[1736517150296,0.462,3238.1,3237.3,3.08899]
[1736517150639,0.462,3238.1,3237.7,3.08854]
[1736517150799,0.462,3238.1,3237.4,3.08884]
[1736517151135,0.462,3238.0,3237.2,3.0]
[1736517151347,0.462,3238.0,3237.9,3.08842]
[1736517151542,0.05,3238.4,3237.9,3.08842]
[1736517151744,0.462,3238.3,3238.2,3.0881]
[1736517152046,0.462,3238.4,3237.9,0.03301283]
[1736517152249,0.462,3238.4,3238.3,3.08804]
[1736517152776,0.462,3238.4,3238.3,3.12075718]
[1736517153269,0.462,3238.4,3238.3,0.03271718]
[1736517153550,0.462,3238.4,3237.9,1.6609]
[1736517153705,8.77,3239.2,3238.5,3.08779]
[1736517153900,0.462,3238.9,3237.3,1.5553]
[1736517154107,0.462,3238.9,3238.6,0.0325296]
[1736517154308,0.462,3238.9,3237.5,3.08873]
[1736517154309,0.462,3238.9,3238.5,3.08783]
[1736517154507,0.05,3239.3,3238.3,3.0]
[1736517154704,0.05,3240.2,3238.9,1.6577]
[1736517154941,0.462,3240.4,3240.0,3.08636]
[1736517155446,0.462,3240.4,3239.6,0.01557005]
[1736517155447,3.08557,3240.9,3239.7,1.5751]
[1736517155649,3.08557,3240.9,3239.0,3.08737]
[1736517155650,2.37946188,3242.8,3241.9,0.64]
[1736517155804,2.37946188,3242.8,3242.7,3.08384]
[1736517156149,0.05,3243.8,3243.3,0.25]
[1736517156335,0.05,3243.8,3243.7,0.25]
[1736517156565,0.05,3244.3,3243.4,0.03691631]
[1736517156729,0.05,3244.3,3243.3,3.33322]
[1736517156730,3.13235,3244.3,3243.7,0.03362179]
[1736517156924,3.08252,3244.1,3243.3,0.25]
[1736517157138,3.08252,3244.1,3242.3,1.5751]
[1736517157139,0.313235,3244.2,3243.1,0.25]
[1736517157324,0.05,3243.9,3242.9,0.25]
[1736517157524,0.05,3243.7,3242.4,0.25]
[1736517157781,0.25,3243.2,3242.4,0.25]
[1736517157937,0.05,3242.6,3240.9,1.629]
[1736517158137,0.088556,3242.6,3240.9,1.629]
[1736517158351,0.55,3242.3,3240.4,3.0]
[1736517158526,0.55,3242.1,3241.2,3.08526]
[1736517158732,0.05,3242.4,3241.0,3.08543]
[1736517158933,0.05,3242.4,3240.8,3.0]
[1736517159172,0.03856351,3242.3,3241.0,3.0]
[1736517159329,0.55,3242.1,3241.0,0.01553577]
[1736517159666,0.55,3242.1,3240.2,1.6499]
[1736517159667,9.32,3241.9,3240.7,3.08569]
[1736517159866,0.05,3241.6,3240.2,1.6499]
[1736517160165,0.50057318,3241.5,3240.3,3.08607]
[1736517160370,0.462,3241.5,3240.4,0.0155529]
[1736517160539,9.27056897,3241.5,3240.2,3.0]
[1736517160865,0.462,3241.5,3240.9,3.08554]
[1736517161165,8.77,3241.5,3241.3,3.0851]
[1736517161387,4.329,3241.8,3241.3,3.08518]
[1736517161689,4.329,3241.8,3240.8,1.6638]
[1736517161892,4.329,3241.8,3241.4,3.08505]
[1736517162031,4.329,3241.8,3240.8,1.6638]
[1736517162392,4.791,3241.8,3241.6,3.08487]
[1736517163045,4.791,3241.8,3241.1,0.01552908]
[1736517163241,4.791,3241.8,3241.5,3.08497]
[1736517163642,4.791,3241.8,3241.1,0.01552908]
[1736517163643,4.791,3241.8,3241.7,3.0848]
[1736517164494,4.791,3241.8,3241.0,7.12506568]
[1736517164696,4.791,3241.8,3241.0,4.03966568]
[1736517164991,13.561,3241.8,3240.6,3.08583]
[1736517165153,4.329,3241.8,3241.0,7.12512568]
[1736517165350,0.462,3241.8,3241.7,3.0923]
[1736517165593,0.462,3242.5,3242.1,3.0844]
[1736517165894,0.03855053,3242.4,3241.8,4.73981]
[1736517166193,0.03855053,3242.4,3241.6,3.0]
[1736517166395,0.462,3242.5,3241.7,0.01552322]
[1736517166605,0.462,3242.5,3241.8,3.08462]
[1736517166766,0.58855589,3242.4,3241.3,4.74417]
[1736517166977,0.58855589,3242.4,3240.8,3.08562]
[1736517166978,0.05,3242.3,3240.9,3.0]
[1736517167165,8.77,3242.1,3240.8,1.5293]
[1736517167367,0.58856608,3242.0,3240.8,1.5293]
[1736517167580,0.55,3242.0,3241.0,3.08543]
[1736517168201,1.52056647,3242.0,3240.8,1.5293]
[1736517168402,3.08518,3241.3,3240.1,4.59909]
[1736517168601,8.77,3241.0,3240.8,3.08562]
[1736517168763,0.46,3240.9,3240.8,3.08565]
[1736517169096,0.51,3242.6,3240.9,0.0075]
[1736517169298,8.77,3242.5,3242.1,3.08437]
[1736517169502,0.03855117,3242.4,3241.8,3.08465]
[1736517170093,8.77,3242.5,3241.4,3.08507]
[1736517170094,0.46,3242.6,3241.9,0.01552291]
[1736517170263,8.77,3242.5,3241.5,3.0]
[1736517170459,0.03855542,3242.4,3241.5,3.08492]
[1736517170703,8.77,3242.5,3241.6,0.0155244]
[1736517170903,8.77,3242.5,3241.9,3.0846]
[1736517171060,8.77,3242.5,3241.9,3.08456]
[1736517171463,8.77,3242.5,3242.0,3.0845]
[1736517171671,8.77,3242.6,3242.4,3.08413]
[1736517171874,0.46,3242.5,3242.4,3.08413]
[1736517172074,9.23,3242.5,3242.2,3.0843]
[1736517172275,0.46,3242.4,3241.8,0.01551482]
[1736517172610,0.46,3242.4,3242.3,3.08419]
[1736517173115,8.77,3242.9,3242.0,0.01551483]
[1736517173292,9.23,3242.9,3242.8,3.08375]
[1736517173608,0.46,3242.9,3242.8,3.08375]
[1736517174602,7.22874,3244.8,3243.0,1.5496]
[1736517174817,0.61246046,3244.9,3244.8,3.08185]
[1736517175518,7.22874,3245.6,3244.8,3.08185]
[1736517175675,0.46,3246.1,3245.2,3.08139]
[1736517175877,0.46,3246.1,3244.9,3.08169]
[1736517176213,7.22874,3245.6,3244.7,3.08194]
[1736517176419,0.81269415,3245.5,3244.5,3.08204]
[1736517176624,0.55,3245.2,3243.9,3.0]
[1736517176828,7.25178674,3245.1,3244.6,3.08202]
[1736517177025,7.22874,3245.1,3244.6,3.08202]
[1736517177226,7.22874,3244.9,3243.8,1.6561]
[1736517177523,7.71178674,3244.8,3243.7,3.08289]
[1736517177692,7.68874,3244.8,3244.2,3.08241]
[1736517178030,7.68874,3244.8,3244.1,3.08249]
[1736517178398,0.55,3244.5,3243.6,3.08294]
[1736517178721,0.55,3244.5,3242.9,1.6221]
[1736517178722,7.22874,3244.2,3243.0,3.0835]
[1736517179027,0.55,3243.9,3243.1,3.08337]
[1736517179226,0.02304674,3243.8,3242.5,3.08395]
[1736517179427,0.02304674,3243.8,3242.8,3.08374]
[1736517179428,7.27874,3243.5,3242.8,3.08374]
[1736517179602,7.22874,3243.2,3242.5,3.08394]
[1736517179798,7.22874,3243.0,3242.6,3.08394]
[1736517180113,7.22874,3243.0,3242.8,3.08371]
[1736517180287,7.22874,3243.0,3242.5,0.03083621]
[1736517180488,7.22874,3242.8,3242.1,3.08436]
[1736517180689,7.22874,3242.8,3242.5,3.08395]
[1736517180890,7.22874,3242.7,3242.0,0.03083956]
[1736517181121,7.22874,3242.7,3242.6,3.08394]
[1736517181425,9.23,3243.4,3243.3,3.08327]
[1736517181595,8.77,3243.3,3242.5,6.084]
[1736517181800,0.02304674,3243.2,3242.6,3.08389]
[1736517181998,8.77,3243.1,3242.5,3.084]
[1736517182230,8.77,3242.9,3242.2,0.03083882]
[1736517182388,8.77,3243.1,3243.0,3.08356]
[1736517182589,9.23,3243.6,3243.5,3.08307]
[1736517182789,8.77,3243.6,3243.5,3.08307]
[1736517182994,8.77,3243.9,3243.8,3.0828]
[1736517183927,8.77,3243.9,3242.4,0.0075]
[1736517183928,8.77,3243.9,3243.6,3.08298]
[1736517184100,8.77,3243.9,3243.7,3.08288]
[1736517184491,8.77,3243.9,3243.4,3.08311]
[1736517184705,8.77,3243.7,3243.0,4.69081]
[1736517184899,8.77,3244.0,3243.1,3.0]
[1736517185141,8.77,3244.1,3244.0,3.08261]
[1736517185292,0.46,3244.5,3244.0,3.08261]
[1736517185293,8.77,3244.4,3244.0,3.08261]
[1736517185827,8.77,3244.4,3243.7,3.08289]
[1736517186034,8.77,3244.9,3244.4,3.08214]
[1736517186332,0.46,3244.4,3244.3,3.08232]
[1736517186931,0.46,3244.4,3244.0,1.5245]
[1736517187233,0.05,3245.1,3243.7,3.08281]
[1736517187234,8.77,3246.1,3245.6,3.08109]
[1736517188249,4.1e-06,3245.7,3245.6,3.08109]
[1736517189293,4.1e-06,3245.7,3245.6,3.08859]
[1736517189525,4.1e-06,3245.7,3245.6,7.68019584]
[1736517189834,4.1e-06,3245.7,3245.6,7.64939]
[1736517190036,8.77,3247.5,3246.4,0.015]
[1736517190195,8.77,3247.5,3246.4,3.08033]
[1736517190421,8.77,3247.5,3246.6,3.08014]
[1736517190620,0.46,3247.5,3246.9,3.07984]
[1736517190820,1.383,3247.5,3246.6,3.08005]
[1736517191048,1.383,3247.5,3246.2,0.03079901]
[1736517191421,1.383,3247.5,3246.3,3.08043]
[1736517191618,8.77,3247.4,3246.4,0.03079834]
[1736517191819,8.77,3247.4,3246.7,3.08001]
[1736517192019,8.77,3247.3,3246.2,3.08043]
[1736517192298,1.0153,3247.4,3245.6,4.64182]
[1736517192299,0.55,3247.0,3245.6,4.64182]
[1736517192421,0.55,3247.0,3245.4,3.08123]
[1736517192776,8.82,3247.1,3245.6,0.0075]
[1736517192919,8.77,3247.0,3246.8,3.07994]
[1736517193119,8.77,3247.0,3246.4,3.08026]
[1736517193466,8.77,3247.0,3245.4,3.08128]
[1736517193467,8.77,3246.8,3245.4,3.08128]
[1736517193619,0.55,3246.7,3245.4,3.08128]
[1736517193828,8.77,3246.6,3245.8,3.08088]
[1736517194024,8.77,3246.6,3245.9,3.08078]
[1736517194233,8.77,3246.6,3245.3,4.03966568]
[1736517194432,0.877,3246.5,3245.2,3.08137]
[1736517194675,0.877,3246.5,3245.6,3.08104]
[1736517194874,8.77,3247.6,3246.3,0.24999]
[1736517195169,0.05,3248.4,3248.2,3.07861]
[1736517195329,8.77,3248.3,3248.2,3.07861]
[1736517195535,0.459,3248.8,3248.4,3.0784]
[1736517195932,9.229,3248.8,3248.0,4.07045141]
[1736517196267,9.229,3248.8,3248.7,6.07815]
[1736517196268,8.77,3248.8,3248.7,6.07815]
[1736517196571,0.1677341,3249.0,3248.9,6.08546]
[1736517196771,0.1677341,3249.0,3248.9,6.09296]
[1736517197071,0.1677341,3249.0,3248.9,6.07796]
[1736517197436,0.1677341,3249.0,3248.9,6.09296]
[1736517197770,0.1677341,3249.0,3248.9,6.07796]
[1736517198251,0.1677341,3249.0,3248.9,6.09296]
[1736517198453,0.1677341,3249.0,3248.9,6.07796]
[1736517198653,0.1677341,3249.0,3248.9,3.0]